[Event "Titled Tuesday Blitz November 08 Early 2022"]
[White "Simonovic, Miroslav"]
[Black "Mazurkiewicz, Michal"]
[WhiteFideId "919152"]
[BlackFideId "1124943"]
[WhiteElo "2043"]
[BlackElo "2063"]
[Result "0-1"]
[Round "02"]
[TimeControl "180+1"]
[Date "2022.11.09"]
[WhiteClock "0:00:01"]
[BlackClock "0:00:22"]

1. d4 {[%clk 0:03:00]}  Nf6 {[%clk 0:02:59]} 2. Bg5 {[%clk 0:03:01]}  e6 {[%clk 0:02:59]} 3. e4 {[%clk 0:03:01]}  Be7 {[%clk 0:03:00]} 4. Bxf6 {[%clk 0:03:01]}  Bxf6 {[%clk 0:03:00]} 5. e5 {[%clk 0:03:02]}  Be7 {[%clk 0:03:00]} 6. Qg4 {[%clk 0:03:02]}  g6 {[%clk 0:02:59]} 7. Bd3 {[%clk 0:03:02]}  d6 {[%clk 0:02:57]} 8. f4 {[%clk 0:02:58]}  c5 {[%clk 0:02:57]} 9. dxc5 {[%clk 0:02:54]}  dxe5 {[%clk 0:02:56]} 10. fxe5 {[%clk 0:02:53]}  Qa5+ {[%clk 0:02:54]} 11. b4 {[%clk 0:02:50]}  Qc7 {[%clk 0:02:54]} 12. Nf3 {[%clk 0:02:47]}  Nc6 {[%clk 0:02:52]} 13. Qe4 {[%clk 0:02:42]}  a5 {[%clk 0:02:51]} 14. b5 {[%clk 0:02:41]}  Nb4 {[%clk 0:02:51]} 15. a3 {[%clk 0:02:09]}  Nxd3+ {[%clk 0:02:50]} 16. cxd3 {[%clk 0:01:51]}  Qxc5 {[%clk 0:02:50]} 17. a4 {[%clk 0:01:40]}  O-O {[%clk 0:02:45]} 18. Nbd2 {[%clk 0:01:34]}  Rd8 {[%clk 0:02:45]} 19. d4 {[%clk 0:01:33]}  Qd5 {[%clk 0:02:44]} 20. O-O {[%clk 0:01:28]}  b6 {[%clk 0:02:43]} 21. Qxd5 {[%clk 0:01:16]}  Rxd5 {[%clk 0:02:44]} 22. Rfc1 {[%clk 0:01:11]}  Rd7 {[%clk 0:02:31]} 23. Rc4 {[%clk 0:01:05]}  Bb7 {[%clk 0:02:29]} 24. Rac1 {[%clk 0:01:06]}  Bd8 {[%clk 0:02:18]} 25. Kf2 {[%clk 0:01:02]}  Bd5 {[%clk 0:02:16]} 26. Rc8 {[%clk 0:00:59]}  Kg7 {[%clk 0:01:47]} 27. Ke3 {[%clk 0:00:55]}  Rxc8 {[%clk 0:01:23]} 28. Rxc8 {[%clk 0:00:56]}  Bb7 {[%clk 0:01:23]} 29. Rc4 {[%clk 0:00:44]}  Be7 {[%clk 0:01:18]} 30. Ne4 {[%clk 0:00:43]}  h6 {[%clk 0:01:16]} 31. g4 {[%clk 0:00:33]}  Kf8 {[%clk 0:01:04]} 32. h4 {[%clk 0:00:32]}  Ke8 {[%clk 0:01:03]} 33. h5 {[%clk 0:00:31]}  g5 {[%clk 0:00:52]} 34. Rc2 {[%clk 0:00:19]}  Kd8 {[%clk 0:00:52]} 35. Nfd2 {[%clk 0:00:17]}  Rc7 {[%clk 0:00:50]} 36. Rxc7 {[%clk 0:00:16]}  Kxc7 {[%clk 0:00:51]} 37. Nc4 {[%clk 0:00:15]}  Bd5 {[%clk 0:00:32]} 38. Ned6 {[%clk 0:00:11]}  Bxd6 {[%clk 0:00:31]} 39. Nxd6 {[%clk 0:00:12]}  f5 {[%clk 0:00:28]} 40. gxf5 {[%clk 0:00:07]}  exf5 {[%clk 0:00:23]} 41. Nxf5 {[%clk 0:00:07]}  Bf7 {[%clk 0:00:23]} 42. Nxh6 {[%clk 0:00:05]}  Bxh5 {[%clk 0:00:24]} 43. d5 {[%clk 0:00:05]}  Bd1 {[%clk 0:00:23]} 44. Ke4 {[%clk 0:00:01]}  Bc2+ {[%clk 0:00:22]} 0-1


[Site "https://www.chess.com"]

[Event "Titled Tuesday Blitz November 08 Early 2022"]
[White "Skatchkov, Valery"]
[Black "Kovalev, Vladislav"]
[WhiteFideId "24195812"]
[BlackFideId "13504398"]
[WhiteElo "2147"]
[BlackElo "2556"]
[Result "0-1"]
[Round "02"]
[TimeControl "180+1"]
[Date "2022.11.09"]
[WhiteClock "0:00:53"]
[BlackClock "0:01:55"]

1. d4 {[%clk 0:03:00]}  Nf6 {[%clk 0:02:55]} 2. c4 {[%clk 0:03:00]}  g6 {[%clk 0:02:56]} 3. Nc3 {[%clk 0:02:59]}  Bg7 {[%clk 0:02:56]} 4. e4 {[%clk 0:03:00]}  d6 {[%clk 0:02:57]} 5. h3 {[%clk 0:03:00]}  O-O {[%clk 0:02:57]} 6. Bg5 {[%clk 0:03:01]}  c5 {[%clk 0:02:57]} 7. d5 {[%clk 0:03:01]}  b5 {[%clk 0:02:56]} 8. cxb5 {[%clk 0:03:01]}  a6 {[%clk 0:02:57]} 9. a4 {[%clk 0:03:01]}  Qa5 {[%clk 0:02:56]} 10. Bd2 {[%clk 0:03:00]}  axb5 {[%clk 0:02:56]} 11. Bxb5 {[%clk 0:02:59]}  Ba6 {[%clk 0:02:54]} 12. Ra3 {[%clk 0:02:54]}  Nbd7 {[%clk 0:02:43]} 13. Nf3 {[%clk 0:02:52]}  Bxb5 {[%clk 0:02:41]} 14. axb5 {[%clk 0:02:52]}  Qb4 {[%clk 0:02:38]} 15. Qa1 {[%clk 0:02:18]}  Rxa3 {[%clk 0:02:24]} 16. Qxa3 {[%clk 0:02:19]}  Qc4 {[%clk 0:02:24]} 17. Qa7 {[%clk 0:02:03]}  Nxe4 {[%clk 0:01:59]} 18. Qxd7 {[%clk 0:01:35]}  Bxc3 {[%clk 0:01:58]} 19. Bxc3 {[%clk 0:00:53]}  Ra8 {[%clk 0:01:55]} 0-1


[Site "https://www.chess.com"]

[Event "Titled Tuesday Blitz November 08 Early 2022"]
[White "Sovetbekova, Nurai"]
[Black "Santos Flores, Alberto"]
[WhiteFideId "13801910"]
[BlackFideId "3601234"]
[WhiteElo "1925"]
[BlackElo "2235"]
[Result "1/2-1/2"]
[Round "02"]
[TimeControl "180+1"]
[Date "2022.11.09"]
[WhiteClock "0:00:06"]
[BlackClock "0:00:30"]

1. d4 {[%clk 0:03:00]}  d5 {[%clk 0:02:59]} 2. c4 {[%clk 0:03:00]}  c6 {[%clk 0:02:58]} 3. Nf3 {[%clk 0:03:00]}  Nf6 {[%clk 0:02:58]} 4. g3 {[%clk 0:03:00]}  Bf5 {[%clk 0:02:56]} 5. Nc3 {[%clk 0:02:58]}  e6 {[%clk 0:02:56]} 6. Nh4 {[%clk 0:02:57]}  Bg6 {[%clk 0:02:52]} 7. Qb3 {[%clk 0:02:54]}  Qb6 {[%clk 0:02:51]} 8. c5 {[%clk 0:02:38]}  Qxb3 {[%clk 0:02:50]} 9. axb3 {[%clk 0:02:39]}  a6 {[%clk 0:02:44]} 10. b4 {[%clk 0:02:36]}  Nbd7 {[%clk 0:02:44]} 11. b5 {[%clk 0:02:36]}  cxb5 {[%clk 0:02:32]} 12. Nxb5 {[%clk 0:02:33]}  Rc8 {[%clk 0:02:32]} 13. Nxg6 {[%clk 0:02:23]}  hxg6 {[%clk 0:02:30]} 14. Nc3 {[%clk 0:02:23]}  Be7 {[%clk 0:02:24]} 15. Bd2 {[%clk 0:02:01]}  Nb8 {[%clk 0:02:20]} 16. b4 {[%clk 0:01:56]}  Nc6 {[%clk 0:02:19]} 17. b5 {[%clk 0:01:54]}  Nxd4 {[%clk 0:02:18]} 18. Rb1 {[%clk 0:01:34]}  axb5 {[%clk 0:02:07]} 19. Nxb5 {[%clk 0:01:19]}  Nxb5 {[%clk 0:02:00]} 20. Rxb5 {[%clk 0:01:20]}  Bxc5 {[%clk 0:01:57]} 21. Rxb7 {[%clk 0:01:19]}  Ne4 {[%clk 0:01:51]} 22. e3 {[%clk 0:01:13]}  O-O {[%clk 0:01:43]} 23. Bd3 {[%clk 0:01:11]}  Nd6 {[%clk 0:01:27]} 24. Rb1 {[%clk 0:01:01]}  Nc4 {[%clk 0:01:24]} 25. Ke2 {[%clk 0:00:56]}  Ne5 {[%clk 0:01:18]} 26. Rb5 {[%clk 0:00:47]}  Nxd3 {[%clk 0:01:16]} 27. Kxd3 {[%clk 0:00:48]}  Be7 {[%clk 0:01:15]} 28. Rhb1 {[%clk 0:00:47]}  Bf6 {[%clk 0:01:15]} 29. h4 {[%clk 0:00:43]}  Be5 {[%clk 0:01:14]} 30. Rb7 {[%clk 0:00:40]}  Rb8 {[%clk 0:01:12]} 31. Rxb8 {[%clk 0:00:37]}  Rxb8 {[%clk 0:01:11]} 32. Rxb8+ {[%clk 0:00:37]}  Bxb8 {[%clk 0:01:11]} 33. Kd4 {[%clk 0:00:30]}  Bd6 {[%clk 0:01:06]} 34. e4 {[%clk 0:00:25]}  dxe4 {[%clk 0:01:03]} 35. Kxe4 {[%clk 0:00:26]}  f5+ {[%clk 0:01:02]} 36. Kd4 {[%clk 0:00:24]}  Kf7 {[%clk 0:01:00]} 37. Bg5 {[%clk 0:00:19]}  Bb8 {[%clk 0:00:58]} 38. Kd3 {[%clk 0:00:16]}  e5 {[%clk 0:00:56]} 39. f3 {[%clk 0:00:13]}  Ke6 {[%clk 0:00:56]} 40. g4 {[%clk 0:00:10]}  Kd5 {[%clk 0:00:53]} 41. Be7 {[%clk 0:00:09]}  Bd6 {[%clk 0:00:51]} 42. Bg5 {[%clk 0:00:07]}  Bc5 {[%clk 0:00:47]} 43. h5 {[%clk 0:00:05]}  e4+ {[%clk 0:00:44]} 44. fxe4+ {[%clk 0:00:05]}  fxe4+ {[%clk 0:00:45]} 45. Ke2 {[%clk 0:00:05]}  gxh5 {[%clk 0:00:45]} 46. gxh5 {[%clk 0:00:06]}  Ke5 {[%clk 0:00:44]} 47. h6 {[%clk 0:00:05]}  gxh6 {[%clk 0:00:36]} 48. Bxh6 {[%clk 0:00:06]}  Kf5 {[%clk 0:00:34]} 49. Be3 {[%clk 0:00:03]}  Bd6 {[%clk 0:00:32]} 50. Bd2 {[%clk 0:00:03]}  Be5 {[%clk 0:00:30]} 51. Be3 {[%clk 0:00:04]}  Ke6 {[%clk 0:00:30]} 52. Bd2 {[%clk 0:00:03]}  Kd5 {[%clk 0:00:31]} 53. Ke3 {[%clk 0:00:03]}  Bd4+ {[%clk 0:00:30]} 54. Ke2 {[%clk 0:00:04]}  Bc5 {[%clk 0:00:30]} 55. Bc1 {[%clk 0:00:04]}  Bb4 {[%clk 0:00:30]} 56. Be3 {[%clk 0:00:05]}  Kc4 {[%clk 0:00:30]} 57. Bf4 {[%clk 0:00:05]}  Bc5 {[%clk 0:00:30]} 58. Be3 {[%clk 0:00:04]}  Bd6 {[%clk 0:00:28]} 59. Bd2 {[%clk 0:00:04]}  Kd5 {[%clk 0:00:29]} 60. Ke3 {[%clk 0:00:04]}  Be5 {[%clk 0:00:29]} 61. Ke2 {[%clk 0:00:05]}  Bd4 {[%clk 0:00:29]} 62. Be3 {[%clk 0:00:05]}  Kc4 {[%clk 0:00:26]} 63. Bg5 {[%clk 0:00:04]}  Kc3 {[%clk 0:00:25]} 64. Bf4 {[%clk 0:00:04]}  Kc2 {[%clk 0:00:24]} 65. Be3 {[%clk 0:00:04]}  Kc3 {[%clk 0:00:24]} 66. Bxd4+ {[%clk 0:00:04]}  Kxd4 {[%clk 0:00:25]} 67. Kd2 {[%clk 0:00:04]}  Kd5 {[%clk 0:00:25]} 68. Ke3 {[%clk 0:00:04]}  Ke5 {[%clk 0:00:25]} 69. Ke2 {[%clk 0:00:04]}  Kd4 {[%clk 0:00:26]} 70. Kd2 {[%clk 0:00:05]}  e3+ {[%clk 0:00:27]} 71. Ke2 {[%clk 0:00:05]}  Ke4 {[%clk 0:00:28]} 72. Ke1 {[%clk 0:00:05]}  Kd3 {[%clk 0:00:29]} 73. Kd1 {[%clk 0:00:06]}  Ke4 {[%clk 0:00:29]} 74. Ke2 {[%clk 0:00:06]}  Kf4 {[%clk 0:00:28]} 75. Ke1 {[%clk 0:00:05]}  Kf3 {[%clk 0:00:29]} 76. Kf1 {[%clk 0:00:06]}  e2+ {[%clk 0:00:29]} 77. Ke1 {[%clk 0:00:06]}  Ke3 {[%clk 0:00:30]} 1/2-1/2


[Site "https://www.chess.com"]

[Event "Titled Tuesday Blitz November 08 Early 2022"]
[White "Streltsov, Alexey"]
[Black "Akbas, Umut Ata"]
[WhiteFideId "24104434"]
[BlackFideId "44572646"]
[WhiteElo "2561"]
[BlackElo "2192"]
[Result "0-1"]
[Round "02"]
[TimeControl "180+1"]
[Date "2022.11.09"]
[WhiteClock "0:01:19"]
[BlackClock "0:01:56"]

1. d4 {[%clk 0:03:00]}  g6 {[%clk 0:02:57]} 2. e4 {[%clk 0:03:00]}  Bg7 {[%clk 0:02:58]} 3. Nc3 {[%clk 0:02:59]}  c6 {[%clk 0:02:57]} 4. Nf3 {[%clk 0:02:50]}  d5 {[%clk 0:02:57]} 5. Bf4 {[%clk 0:02:47]}  dxe4 {[%clk 0:02:56]} 6. Nxe4 {[%clk 0:02:48]}  Bg4 {[%clk 0:02:55]} 7. c3 {[%clk 0:02:41]}  Nd7 {[%clk 0:02:53]} 8. Bc4 {[%clk 0:02:40]}  Bxf3 {[%clk 0:02:30]} 9. Qxf3 {[%clk 0:02:14]}  Ngf6 {[%clk 0:02:26]} 10. Ng5 {[%clk 0:02:11]}  O-O {[%clk 0:02:22]} 11. O-O {[%clk 0:02:07]}  h6 {[%clk 0:02:07]} 12. Ne4 {[%clk 0:02:04]}  Nxe4 {[%clk 0:02:06]} 13. Qxe4 {[%clk 0:02:05]}  e6 {[%clk 0:02:05]} 14. Rae1 {[%clk 0:01:47]}  Re8 {[%clk 0:02:05]} 15. Bd3 {[%clk 0:01:45]}  e5 {[%clk 0:02:01]} 16. dxe5 {[%clk 0:01:39]}  Nc5 {[%clk 0:02:00]} 17. Qc4 {[%clk 0:01:28]}  Nxd3 {[%clk 0:01:56]} 18. Rd1 {[%clk 0:01:19]}  Nxb2 {[%clk 0:01:56]} 0-1


[Site "https://www.chess.com"]

[Event "Titled Tuesday Blitz November 08 Early 2022"]
[White "Svane, Frederik"]
[Black "Thomforde-Toates, Noah"]
[WhiteFideId "12923044"]
[BlackFideId "30951992"]
[WhiteElo "2466"]
[BlackElo "2609"]
[Result "0-1"]
[Round "02"]
[TimeControl "180+1"]
[Date "2022.11.09"]
[WhiteClock "0:00:02"]
[BlackClock "0:00:15"]

1. c4 {[%clk 0:03:00]}  Nf6 {[%clk 0:02:45]} 2. Nc3 {[%clk 0:03:00]}  g6 {[%clk 0:02:45]} 3. g3 {[%clk 0:03:00]}  Bg7 {[%clk 0:02:45]} 4. Bg2 {[%clk 0:03:00]}  O-O {[%clk 0:02:44]} 5. d3 {[%clk 0:03:01]}  d6 {[%clk 0:02:43]} 6. Rb1 {[%clk 0:02:59]}  a5 {[%clk 0:02:42]} 7. Nf3 {[%clk 0:02:56]}  Nc6 {[%clk 0:02:42]} 8. O-O {[%clk 0:02:56]}  e5 {[%clk 0:02:42]} 9. a3 {[%clk 0:02:57]}  Re8 {[%clk 0:02:42]} 10. Nd2 {[%clk 0:02:53]}  h5 {[%clk 0:02:38]} 11. h4 {[%clk 0:02:49]}  Be6 {[%clk 0:02:37]} 12. b4 {[%clk 0:02:49]}  axb4 {[%clk 0:02:36]} 13. axb4 {[%clk 0:02:50]}  d5 {[%clk 0:02:29]} 14. cxd5 {[%clk 0:02:35]}  Nxd5 {[%clk 0:02:28]} 15. Nxd5 {[%clk 0:02:33]}  Bxd5 {[%clk 0:02:28]} 16. Ne4 {[%clk 0:02:22]}  Nd4 {[%clk 0:02:14]} 17. Bg5 {[%clk 0:02:08]}  Qd7 {[%clk 0:02:03]} 18. b5 {[%clk 0:01:21]}  Ra2 {[%clk 0:01:46]} 19. Bd2 {[%clk 0:00:48]}  b6 {[%clk 0:01:02]} 20. Nc3 {[%clk 0:00:34]}  Bxg2 {[%clk 0:00:59]} 21. Kxg2 {[%clk 0:00:35]}  Ra3 {[%clk 0:00:55]} 22. Qc1 {[%clk 0:00:24]}  Rea8 {[%clk 0:00:46]} 23. Rd1 {[%clk 0:00:20]}  Qg4 {[%clk 0:00:21]} 24. f3 {[%clk 0:00:18]}  Qd7 {[%clk 0:00:20]} 25. Be1 {[%clk 0:00:14]}  f5 {[%clk 0:00:17]} 26. e3 {[%clk 0:00:12]}  Ne6 {[%clk 0:00:17]} 27. Qc2 {[%clk 0:00:12]}  Nc5 {[%clk 0:00:16]} 28. Rbc1 {[%clk 0:00:08]}  Qe6 {[%clk 0:00:16]} 29. Qe2 {[%clk 0:00:07]}  e4 {[%clk 0:00:15]} 30. fxe4 {[%clk 0:00:05]}  fxe4 {[%clk 0:00:16]} 31. d4 {[%clk 0:00:06]}  Nd3 {[%clk 0:00:17]} 32. Rc2 {[%clk 0:00:06]}  Qf5 {[%clk 0:00:15]} 33. Bf2 {[%clk 0:00:04]}  Ra1 {[%clk 0:00:15]} 34. Rxa1 {[%clk 0:00:03]}  Rxa1 {[%clk 0:00:16]} 35. Bg1 {[%clk 0:00:03]}  Ne1+ {[%clk 0:00:16]} 36. Kh2 {[%clk 0:00:02]}  Nf3+ {[%clk 0:00:15]} 37. Kg2 {[%clk 0:00:01]}  Rxg1+ {[%clk 0:00:15]} 38. Kf2 {[%clk 0:00:01]}  Rh1 {[%clk 0:00:16]} 39. Nxe4 {[%clk 0:00:02]}  Rh2+ {[%clk 0:00:15]} 40. Kf1 {[%clk 0:00:02]}  Rxe2 {[%clk 0:00:15]} 0-1


[Site "https://www.chess.com"]

[Event "Titled Tuesday Blitz November 08 Early 2022"]
[White "Swiercz, Dariusz"]
[Black "Degenbaev, Aziz"]
[WhiteFideId "1126881"]
[BlackFideId "13802640"]
[WhiteElo "2627"]
[BlackElo "2039"]
[Result "1-0"]
[Round "02"]
[TimeControl "180+1"]
[Date "2022.11.09"]
[WhiteClock "0:00:29"]
[BlackClock "0:00:01"]

1. Nf3 {[%clk 0:03:00]}  Nf6 {[%clk 0:02:59]} 2. d4 {[%clk 0:03:01]}  g6 {[%clk 0:02:59]} 3. g3 {[%clk 0:03:01]}  Bg7 {[%clk 0:02:59]} 4. Bg2 {[%clk 0:03:02]}  O-O {[%clk 0:02:59]} 5. O-O {[%clk 0:03:03]}  d6 {[%clk 0:02:58]} 6. Nc3 {[%clk 0:03:04]}  c5 {[%clk 0:02:58]} 7. d5 {[%clk 0:03:02]}  Na6 {[%clk 0:02:52]} 8. h3 {[%clk 0:03:01]}  Nc7 {[%clk 0:02:52]} 9. a4 {[%clk 0:03:02]}  e6 {[%clk 0:02:51]} 10. dxe6 {[%clk 0:02:55]}  Bxe6 {[%clk 0:02:49]} 11. Ng5 {[%clk 0:02:53]}  d5 {[%clk 0:02:43]} 12. Nxe6 {[%clk 0:02:53]}  fxe6 {[%clk 0:02:43]} 13. e4 {[%clk 0:02:52]}  d4 {[%clk 0:02:42]} 14. Nb5 {[%clk 0:02:50]}  e5 {[%clk 0:02:15]} 15. Qe2 {[%clk 0:02:43]}  Kh8 {[%clk 0:02:12]} 16. b3 {[%clk 0:02:36]}  a6 {[%clk 0:02:10]} 17. Nxc7 {[%clk 0:02:30]}  Qxc7 {[%clk 0:02:11]} 18. a5 {[%clk 0:02:27]}  c4 {[%clk 0:01:53]} 19. Qxc4 {[%clk 0:02:26]}  Qxc4 {[%clk 0:01:46]} 20. bxc4 {[%clk 0:02:27]}  Rfc8 {[%clk 0:01:46]} 21. Ra4 {[%clk 0:02:28]}  Nd7 {[%clk 0:01:43]} 22. Ba3 {[%clk 0:02:20]}  b5 {[%clk 0:01:37]} 23. axb6 {[%clk 0:01:45]}  Nxb6 {[%clk 0:01:37]} 24. Rb4 {[%clk 0:01:45]}  Nxc4 {[%clk 0:01:36]} 25. Bc1 {[%clk 0:01:39]}  a5 {[%clk 0:01:36]} 26. Rb1 {[%clk 0:01:34]}  a4 {[%clk 0:01:35]} 27. Ra1 {[%clk 0:01:34]}  Bf8 {[%clk 0:01:05]} 28. Bf3 {[%clk 0:01:10]}  Bb4 {[%clk 0:00:40]} 29. Be2 {[%clk 0:01:09]}  Nd2 {[%clk 0:00:31]} 30. Rd1 {[%clk 0:01:02]}  Nxe4 {[%clk 0:00:29]} 31. Bf3 {[%clk 0:00:57]}  Nc3 {[%clk 0:00:27]} 32. Bxa8 {[%clk 0:00:55]}  Nxd1 {[%clk 0:00:28]} 33. Rxa4 {[%clk 0:00:55]}  Rxc2 {[%clk 0:00:17]} 34. Bh6 {[%clk 0:00:52]}  Bd2 {[%clk 0:00:14]} 35. Be4 {[%clk 0:00:48]}  Bxh6 {[%clk 0:00:12]} 36. Ra8+ {[%clk 0:00:42]}  Kg7 {[%clk 0:00:12]} 37. Ra7+ {[%clk 0:00:42]}  Kh8 {[%clk 0:00:07]} 38. Bxc2 {[%clk 0:00:42]}  Nb2 {[%clk 0:00:06]} 39. Rd7 {[%clk 0:00:41]}  Bd2 {[%clk 0:00:05]} 40. Kg2 {[%clk 0:00:39]}  Bc3 {[%clk 0:00:04]} 41. Be4 {[%clk 0:00:37]}  Nc4 {[%clk 0:00:04]} 42. h4 {[%clk 0:00:34]}  Nd2 {[%clk 0:00:04]} 43. f3 {[%clk 0:00:35]}  Nc4 {[%clk 0:00:05]} 44. Kf2 {[%clk 0:00:31]}  Ne3 {[%clk 0:00:04]} 45. Ke2 {[%clk 0:00:30]}  Nc4 {[%clk 0:00:01]} 46. h5 {[%clk 0:00:29]} 1-0


[Site "https://www.chess.com"]

[Event "Titled Tuesday Blitz November 08 Early 2022"]
[White "Szente Varga, Fruzsina"]
[Black "Carbone, Diego"]
[WhiteFideId "712264"]
[BlackFideId "3002179"]
[WhiteElo "1994"]
[BlackElo "2265"]
[Result "1-0"]
[Round "02"]
[TimeControl "180+1"]
[Date "2022.11.09"]
[WhiteClock "0:00:17"]
[BlackClock "0:00:02"]

1. e4 {[%clk 0:03:00]}  e5 {[%clk 0:03:00]} 2. Nf3 {[%clk 0:02:57]}  Nc6 {[%clk 0:03:00]} 3. Bb5 {[%clk 0:02:57]}  a6 {[%clk 0:02:59]} 4. Ba4 {[%clk 0:02:56]}  Nf6 {[%clk 0:02:59]} 5. Qe2 {[%clk 0:02:56]}  b5 {[%clk 0:02:57]} 6. Bb3 {[%clk 0:02:56]}  Bc5 {[%clk 0:02:58]} 7. c3 {[%clk 0:02:56]}  d6 {[%clk 0:02:58]} 8. O-O {[%clk 0:02:55]}  O-O {[%clk 0:02:55]} 9. h3 {[%clk 0:02:55]}  h6 {[%clk 0:02:55]} 10. Rd1 {[%clk 0:02:55]}  Bb6 {[%clk 0:02:52]} 11. d3 {[%clk 0:02:53]}  Re8 {[%clk 0:02:51]} 12. Nbd2 {[%clk 0:02:52]}  Be6 {[%clk 0:02:51]} 13. Bc2 {[%clk 0:02:50]}  d5 {[%clk 0:02:46]} 14. Nf1 {[%clk 0:02:41]}  d4 {[%clk 0:02:42]} 15. Ng3 {[%clk 0:02:37]}  Kh7 {[%clk 0:02:29]} 16. Nf5 {[%clk 0:02:21]}  Ng8 {[%clk 0:02:17]} 17. Ng5+ {[%clk 0:01:20]}  hxg5 {[%clk 0:01:25]} 18. Qh5+ {[%clk 0:01:19]}  Nh6 {[%clk 0:01:25]} 19. Bxg5 {[%clk 0:01:06]}  Bxf5 {[%clk 0:01:24]} 20. Bxd8 {[%clk 0:01:03]}  Bg6 {[%clk 0:01:25]} 21. Qh4 {[%clk 0:00:50]}  Raxd8 {[%clk 0:01:22]} 22. g4 {[%clk 0:00:50]}  f6 {[%clk 0:01:17]} 23. Kh2 {[%clk 0:00:48]}  Kg8 {[%clk 0:01:16]} 24. Rg1 {[%clk 0:00:47]}  Nf7 {[%clk 0:01:16]} 25. Bb3 {[%clk 0:00:38]}  Na5 {[%clk 0:01:13]} 26. Bxf7+ {[%clk 0:00:38]}  Kxf7 {[%clk 0:01:14]} 27. g5 {[%clk 0:00:37]}  Rh8 {[%clk 0:01:10]} 28. Qg4 {[%clk 0:00:37]}  fxg5 {[%clk 0:00:55]} 29. Qxg5 {[%clk 0:00:37]}  Rh6 {[%clk 0:00:54]} 30. f4 {[%clk 0:00:35]}  exf4 {[%clk 0:00:50]} 31. Qxd8 {[%clk 0:00:33]}  dxc3 {[%clk 0:00:46]} 32. Qd7+ {[%clk 0:00:32]}  Kg8 {[%clk 0:00:43]} 33. bxc3 {[%clk 0:00:29]}  f3 {[%clk 0:00:23]} 34. Rg3 {[%clk 0:00:23]}  f2 {[%clk 0:00:21]} 35. Qe6+ {[%clk 0:00:19]}  Kh7 {[%clk 0:00:21]} 36. Rf1 {[%clk 0:00:16]}  Nb7 {[%clk 0:00:14]} 37. d4 {[%clk 0:00:15]}  Nd6 {[%clk 0:00:15]} 38. Rxf2 {[%clk 0:00:15]}  Nxe4 {[%clk 0:00:15]} 39. Rfg2 {[%clk 0:00:14]}  Nxg3 {[%clk 0:00:15]} 40. Rxg3 {[%clk 0:00:15]}  a5 {[%clk 0:00:12]} 41. Qe7 {[%clk 0:00:15]}  a4 {[%clk 0:00:12]} 42. Rg4 {[%clk 0:00:15]}  Rh5 {[%clk 0:00:08]} 43. Rh4 {[%clk 0:00:14]}  Rxh4 {[%clk 0:00:08]} 44. Qxh4+ {[%clk 0:00:15]}  Kg8 {[%clk 0:00:08]} 45. Qg5 {[%clk 0:00:16]}  Kf7 {[%clk 0:00:09]} 46. Qxb5 {[%clk 0:00:16]}  Bc2 {[%clk 0:00:08]} 47. Qc4+ {[%clk 0:00:16]}  Kf6 {[%clk 0:00:08]} 48. Qe2 {[%clk 0:00:16]}  Bf5 {[%clk 0:00:07]} 49. Qe5+ {[%clk 0:00:16]}  Kg6 {[%clk 0:00:07]} 50. Kg3 {[%clk 0:00:16]}  Kg5 {[%clk 0:00:05]} 51. h4+ {[%clk 0:00:16]}  Kg6 {[%clk 0:00:05]} 52. Kf4 {[%clk 0:00:16]}  Bd7 {[%clk 0:00:03]} 53. h5+ {[%clk 0:00:17]}  Kf7 {[%clk 0:00:03]} 54. Kg5 {[%clk 0:00:16]}  Be6 {[%clk 0:00:03]} 55. h6 {[%clk 0:00:16]}  gxh6+ {[%clk 0:00:03]} 56. Kxh6 {[%clk 0:00:17]}  Bxa2 {[%clk 0:00:02]} 57. Qg7+ {[%clk 0:00:17]}  Ke6 {[%clk 0:00:02]} 58. Qg8+ {[%clk 0:00:16]}  Kd7 {[%clk 0:00:02]} 59. Qxa2 {[%clk 0:00:17]} 1-0


[Site "https://www.chess.com"]

[Event "Titled Tuesday Blitz November 08 Early 2022"]
[White "Tasev, Dejan"]
[Black "Urazayev, Arystanbek"]
[WhiteFideId "936618"]
[BlackFideId "13709810"]
[WhiteElo "2256"]
[BlackElo "2441"]
[Result "0-1"]
[Round "02"]
[TimeControl "180+1"]
[Date "2022.11.09"]
[WhiteClock "0:00:19"]
[BlackClock "0:00:26"]

1. e4 {[%clk 0:03:00]}  c6 {[%clk 0:03:00]} 2. d4 {[%clk 0:03:00]}  d5 {[%clk 0:03:00]} 3. Nc3 {[%clk 0:03:01]}  dxe4 {[%clk 0:03:00]} 4. Nxe4 {[%clk 0:03:02]}  Bf5 {[%clk 0:03:01]} 5. Ng3 {[%clk 0:03:02]}  Bg6 {[%clk 0:03:01]} 6. Nf3 {[%clk 0:03:01]}  Nd7 {[%clk 0:03:01]} 7. Bc4 {[%clk 0:03:02]}  e6 {[%clk 0:03:01]} 8. Bb3 {[%clk 0:03:02]}  Ngf6 {[%clk 0:03:00]} 9. c3 {[%clk 0:03:02]}  Bd6 {[%clk 0:02:54]} 10. Qe2 {[%clk 0:03:01]}  Qc7 {[%clk 0:02:54]} 11. Be3 {[%clk 0:02:47]}  Nd5 {[%clk 0:02:50]} 12. O-O {[%clk 0:02:39]}  Nxe3 {[%clk 0:02:48]} 13. Qxe3 {[%clk 0:02:32]}  O-O {[%clk 0:02:47]} 14. Rfe1 {[%clk 0:02:26]}  Rfe8 {[%clk 0:02:42]} 15. Rad1 {[%clk 0:02:25]}  e5 {[%clk 0:02:33]} 16. dxe5 {[%clk 0:02:20]}  Nxe5 {[%clk 0:02:31]} 17. Nxe5 {[%clk 0:02:19]}  Bxe5 {[%clk 0:02:31]} 18. Qf3 {[%clk 0:02:18]}  h6 {[%clk 0:02:23]} 19. h3 {[%clk 0:02:03]}  a5 {[%clk 0:02:22]} 20. Nf5 {[%clk 0:01:55]}  a4 {[%clk 0:02:07]} 21. Bc2 {[%clk 0:01:50]}  a3 {[%clk 0:02:07]} 22. b3 {[%clk 0:01:47]}  Rad8 {[%clk 0:02:06]} 23. c4 {[%clk 0:01:42]}  Rxd1 {[%clk 0:02:02]} 24. Rxd1 {[%clk 0:01:39]}  Bh2+ {[%clk 0:01:55]} 25. Kf1 {[%clk 0:01:31]}  Be5 {[%clk 0:01:46]} 26. g4 {[%clk 0:01:28]}  Rd8 {[%clk 0:01:39]} 27. Rxd8+ {[%clk 0:01:24]}  Qxd8 {[%clk 0:01:39]} 28. Qd1 {[%clk 0:01:20]}  Qc7 {[%clk 0:01:20]} 29. Be4 {[%clk 0:01:13]}  Bxf5 {[%clk 0:01:18]} 30. Bxf5 {[%clk 0:01:13]}  g6 {[%clk 0:01:17]} 31. Be4 {[%clk 0:01:10]}  Kg7 {[%clk 0:01:17]} 32. Kg2 {[%clk 0:01:09]}  Qe7 {[%clk 0:01:17]} 33. Bf3 {[%clk 0:01:05]}  Qf6 {[%clk 0:01:15]} 34. Qd2 {[%clk 0:00:59]}  Bf4 {[%clk 0:01:15]} 35. Qe2 {[%clk 0:00:53]}  Bc7 {[%clk 0:01:10]} 36. Be4 {[%clk 0:00:40]}  Qb2 {[%clk 0:01:01]} 37. Qc2 {[%clk 0:00:34]}  Qe5 {[%clk 0:01:00]} 38. Qd3 {[%clk 0:00:32]}  Bb6 {[%clk 0:00:47]} 39. Qf3 {[%clk 0:00:23]}  Qb2 {[%clk 0:00:43]} 40. h4 {[%clk 0:00:23]}  Qxa2 {[%clk 0:00:43]} 41. h5 {[%clk 0:00:23]}  Qxf2+ {[%clk 0:00:42]} 42. Qxf2 {[%clk 0:00:23]}  Bxf2 {[%clk 0:00:43]} 43. Bb1 {[%clk 0:00:22]}  Bd4 {[%clk 0:00:41]} 44. Kf3 {[%clk 0:00:21]}  Kf6 {[%clk 0:00:37]} 45. hxg6 {[%clk 0:00:21]}  fxg6 {[%clk 0:00:38]} 46. b4 {[%clk 0:00:20]}  b5 {[%clk 0:00:35]} 47. cxb5 {[%clk 0:00:20]}  cxb5 {[%clk 0:00:36]} 48. Ke4 {[%clk 0:00:19]}  Bc3 {[%clk 0:00:37]} 49. Kd5 {[%clk 0:00:19]}  Bxb4 {[%clk 0:00:28]} 50. Kc6 {[%clk 0:00:19]}  Kg5 {[%clk 0:00:25]} 51. Kxb5 {[%clk 0:00:19]}  Bf8 {[%clk 0:00:23]} 52. Kc4 {[%clk 0:00:17]}  Kxg4 {[%clk 0:00:23]} 53. Kd3 {[%clk 0:00:18]}  g5 {[%clk 0:00:22]} 54. Ke2 {[%clk 0:00:18]}  h5 {[%clk 0:00:22]} 55. Ba2 {[%clk 0:00:18]}  h4 {[%clk 0:00:22]} 56. Kf2 {[%clk 0:00:18]}  Bc5+ {[%clk 0:00:22]} 57. Kg2 {[%clk 0:00:19]}  h3+ {[%clk 0:00:22]} 58. Kh2 {[%clk 0:00:19]}  Bd6+ {[%clk 0:00:23]} 59. Kh1 {[%clk 0:00:20]}  Kh4 {[%clk 0:00:23]} 60. Be6 {[%clk 0:00:19]}  g4 {[%clk 0:00:24]} 61. Ba2 {[%clk 0:00:19]}  g3 {[%clk 0:00:25]} 62. Bd5 {[%clk 0:00:19]}  g2+ {[%clk 0:00:25]} 63. Kg1 {[%clk 0:00:19]}  Bc5+ {[%clk 0:00:26]} 0-1


[Site "https://www.chess.com"]